[Event "HUN-chT Youth-Children 2018"]
[Site "Zalakaros"]
[Date "2018.07.26"]
[Round "2"]
[White "Herczeg, Marcell"]
[Black "Turcsanyi, Vince Gergo"]
[Result "1/2-1/2"]
[ECO "C44"]
[WhiteElo "1490"]
[BlackElo "1639"]
[Annotator "NA"]
[PlyCount "96"]
[EventDate "2018.07.26"]
[EventType "team-tourn"]
[EventCountry "HUN"]
[SourceTitle "playchess.com"]
[Source "ChessBase"]
[SourceQuality "1"]
[TimeControl "5400+30"]

1. e4 {[%emt 0:00:00]} e5 {[%emt 0:00:10]} 2. Nf3 {[%emt 0:00:31]} Nc6 {[%emt 0:00:17]} 3. d4 {[%emt 0:01:02]} exd4 {[%emt 0:00:09]} 4. Nxd4 {[%emt 0:00:39]} Nf6 {[%emt 0:00:15]} 5. Nxc6 {[%emt 0:00:39]} bxc6 {[%emt 0:00:16]} 6. Bd3 {[%emt 0:00:08]} d5 {[%emt 0:00:19]} 7. exd5 {[%emt 0:02:39]} cxd5 {[%emt 0:00:45]} 8. O-O {[%emt 0:00:41]} Be7 {[%emt 0:01:19]} 9. Bf4 {[%emt 0:00:59]} O-O {[%emt 0:01:41]} 10. Nc3 {[%emt 0:00:54]} c6 {[%emt 0:00:53]} 11. Qd2 {[%emt 0:02:26]} Bb4 {[%emt 0:04:56]} 12. a3 {[%emt 0:00:33]} Ba5 {[%emt 0:00:08]} 13. b4 {[%emt 0:00:23]} Bc7 {[%emt 0:00:13]} 14. Ne2 {[%emt 0:01:27]} Re8 {[%emt 0:06:26]} 15. Rfe1 {[%emt 0:03:44]} Bg4 {[%emt 0:02:50]} 16. Nd4 {[%emt 0:02:25]} Ne4 {[%emt 0:05:31]} 17. Bxe4 {[%emt 0:00:58]} dxe4 {[%emt 0:00:45]} 18. Nxc6 {[%emt 0:01:31]} Qf6 {[%emt 0:06:41]} 19. Bxc7 {[%emt 0:00:52]} Qxc6 {[%emt 0:00:28]} 20. Bf4 {[%emt 0:00:28]} Rac8 {[%emt 0:04:33]} 21. c4 {[%emt 0:10:53]} Qxc4 {[%emt 0:02:51]} 22. Rac1 {[%emt 0:00:27]} Qe6 {[%emt 0:03:02]} 23. Qe3 {[%emt 0:04:30]} a6 {[%emt 0:10:26]} 24. Rxc8 {[%emt 0:00:55]} Qxc8 {[%emt 0:00:20]} 25. Rc1 {[%emt 0:00:07]} Qd7 {[%emt 0:01:38]} 26. Qc5 {[%emt 0:02:45]} Rc8 {[%emt 0:05:55]} 27. Qxc8+ {[%emt 0:00:53]} Qxc8 {[%emt 0:00:02]} 28. Rxc8+ {[%emt 0:00:04]} Bxc8 {[%emt 0:00:01]} 29. Kf1 {[%emt 0:00:35]} f5 {[%emt 0:00:22]} 30. Ke2 {[%emt 0:00:09]} Kf7 {[%emt 0:00:57]} 31. Ke3 {[%emt 0:00:18]} Ke6 {[%emt 0:00:50]} 32. Kd4 {[%emt 0:00:30]} h6 {[%emt 0:00:21]} 33. h4 {[%emt 0:00:07]} g5 {[%emt 0:02:39]} 34. hxg5 {[%emt 0:00:21]} hxg5 {[%emt 0:00:02]} 35. Bxg5 {[%emt 0:00:17]} Kd6 {[%emt 0:00:05]} 36. Bf4+ {[%emt 0:00:10]} Kc6 {[%emt 0:00:16]} 37. a4 {[%emt 0:01:59]} Kb6 {[%emt 0:02:29]} 38. Be3 {[%emt 0:00:43]} Bd7 {[%emt 0:01:52]} 39. Ke5+ {[%emt 0:00:56]} Kb7 {[%emt 0:00:46]} 40. f4 {[%emt 0:00:39]} exf3 {[%emt 0:00:59]} 41. gxf3 {[%emt 0:00:07]} Bxa4 {[%emt 0:00:35]} 42. Kxf5 {[%emt 0:00:27]} Bc6 {[%emt 0:00:09]} 43. f4 {[%emt 0:00:18]} Bd7+ {[%emt 0:00:22]} 44. Ke5 {[%emt 0:00:33]} Kc6 {[%emt 0:00:10]} 45. f5 {[%emt 0:00:14]} Bxf5 {[%emt 0:00:11]} 46. Kxf5 {[%emt 0:00:07]} Kb5 {[%emt 0:00:08]} 47. Bd2 {[%emt 0:00:11]} a5 {[%emt 0:00:05]} 48. bxa5 {[%emt 0:00:05]} Ka6 1/2-1/2

[Event "HUN-chT Youth-Children 2018"]
[Site "Zalakaros"]
[Date "2018.07.26"]
[Round "2"]
[White "Gyorgyfalvai, Fanni"]
[Black "Koltai, Dora"]
[Result "0-1"]
[ECO "B01"]
[WhiteElo "1476"]
[BlackElo "1786"]
[Annotator "NA"]
[PlyCount "76"]
[EventDate "2018.07.26"]
[EventType "team-tourn"]
[EventCountry "HUN"]
[SourceTitle "playchess.com"]
[Source "ChessBase"]
[SourceQuality "1"]
[TimeControl "5400+30"]

1. e4 {[%emt 0:00:00]} d5 {[%emt 0:00:12]} 2. exd5 {[%emt 0:00:00]} Qxd5 {[%emt 0:00:05]} 3. Nc3 {[%emt 0:00:00]} Qd6 {[%emt 0:00:11]} 4. d4 {[%emt 0:00:10]} Nf6 {[%emt 0:00:29]} 5. Nf3 {[%emt 0:00:34]} a6 {[%emt 0:00:14]} 6. Bd3 {[%emt 0:00:27]} g6 {[%emt 0:01:39]} 7. Ne4 {[%emt 0:02:48]} Nxe4 {[%emt 0:01:47]} 8. Bxe4 {[%emt 0:00:12]} Bg7 {[%emt 0:02:20]} 9. O-O {[%emt 0:00:54]} O-O {[%emt 0:01:21]} 10. h3 {[%emt 0:01:08]} Nd7 {[%emt 0:02:07]} 11. c3 {[%emt 0:01:05]} Nf6 {[%emt 0:01:45]} 12. Bd3 {[%emt 0:01:42]} b5 {[%emt 0:07:42]} 13. Re1 {[%emt 0:04:31]} Bb7 {[%emt 0:01:46]} 14. Bg5 {[%emt 0:02:40]} Rfd8 {[%emt 0:05:46]} 15. Re3 {[%emt 0:11:07]} Nd5 {[%emt 0:09:34]} 16. Re1 {[%emt 0:08:36]} Re8 {[%emt 0:08:41]} 17. Be4 {[%emt 0:03:21]} Rad8 {[%emt 0:03:39]} 18. Bh4 {[%emt 0:02:43]} c5 {[%emt 0:09:44]} 19. Bg3 {[%emt 0:02:41]} Qb6 {[%emt 0:02:13]} 20. Qd2 {[%emt 0:06:12]} cxd4 {[%emt 0:08:09]} 21. Nxd4 {[%emt 0:00:29]} e5 {[%emt 0:03:06]} 22. Nf3 {[%emt 0:04:35]} Nf6 {[%emt 0:02:19]} 23. Qc2 {[%emt 0:00:45]} Nxe4 {[%emt 0:01:02]} 24. Rxe4 {[%emt 0:01:00]} Bxe4 {[%emt 0:00:14]} 25. Qxe4 {[%emt 0:00:17]} Qd6 {[%emt 0:03:56]} 26. Re1 {[%emt 0:04:11]} Qd5 {[%emt 0:01:57]} 27. Nxe5 {[%emt 0:11:37]} Qxe4 {[%emt 0:01:56]} 28. Rxe4 {[%emt 0:00:25]} f6 {[%emt 0:00:37]} 29. f4 {[%emt 0:14:06]} fxe5 {[%emt 0:00:14]} 30. fxe5 {[%emt 0:00:02]} Re6 {[%emt 0:00:57]} 31. Rd4 {[%emt 0:02:23]} Rde8 {[%emt 0:00:46]} 32. a4 {[%emt 0:05:44]} Bxe5 {[%emt 0:00:23]} 33. Bxe5 {[%emt 0:00:18]} Rxe5 {[%emt 0:00:01]} 34. axb5 {[%emt 0:02:08]} Rxb5 {[%emt 0:00:12]} 35. Rd2 {[%emt 0:01:21]} Reb8 {[%emt 0:00:37]} 36. b4 {[%emt 0:00:45]} Rc8 {[%emt 0:00:14]} 37. Rc2 {[%emt 0:00:51]} Rxb4 {[%emt 0:00:08]} 38. cxb4 {[%emt 0:00:33]} Rxc2 {[%emt 0:00:08]} 0-1

[Event "HUN-chT Youth-Children 2018"]
[Site "Zalakaros"]
[Date "2018.07.26"]
[Round "2"]
[White "Bodo, Boglarka"]
[Black "Gulacsi, Donat Ferenc"]
[Result "1-0"]
[ECO "B10"]
[WhiteElo "1471"]
[BlackElo "1610"]
[Annotator "NA"]
[PlyCount "49"]
[EventDate "2018.07.26"]
[EventType "team-tourn"]
[EventCountry "HUN"]
[SourceTitle "playchess.com"]
[Source "ChessBase"]
[SourceQuality "1"]
[TimeControl "5400+30"]

1. e4 {[%emt 0:00:00]} c6 {[%emt 0:00:50]} 2. c4 {[%emt 0:00:00]} d5 {[%emt 0:00:14]} 3. cxd5 {[%emt 0:00:18]} cxd5 {[%emt 0:00:15]} 4. exd5 {[%emt 0:00:30]} Nf6 {[%emt 0:00:21]} 5. Nc3 {[%emt 0:01:02]} Nxd5 {[%emt 0:00:12]} 6. d4 {[%emt 0:02:25]} e6 {[%emt 0:08:10]} 7. Nf3 {[%emt 0:03:14]} b6 {[%emt 0:06:53]} 8. Bb5+ {[%emt 0:08:25]} Bd7 {[%emt 0:02:39]} 9. Bxd7+ {[%emt 0:02:42]} Qxd7 {[%emt 0:00:20]} 10. Ne5 {[%emt 0:02:06]} Qb7 {[%emt 0:09:31]} 11. Qf3 {[%emt 0:03:42]} Bb4 {[%emt 0:01:18]} 12. Bd2 {[%emt 0:01:00]} Bxc3 {[%emt 0:02:27]} 13. bxc3 {[%emt 0:01:51]} Qe7 {[%emt 0:08:29]} 14. c4 {[%emt 0:04:48]} Nc7 {[%emt 0:00:17]} 15. Qg4 {[%emt 0:11:25]} O-O {[%emt 0:09:15]} 16. O-O {[%emt 0:06:44]} Rd8 {[%emt 0:11:26]} 17. Bc3 {[%emt 0:04:20]} Qa3 {[%emt 0:07:38]} 18. Rfc1 {[%emt 0:02:31]} Nd7 {[%emt 0:09:31]} 19. Nc6 {[%emt 0:03:49]} Nf6 {[%emt 0:02:22]} 20. Qg3 {[%emt 0:02:51]} Rd6 {[%emt 0:09:20]} 21. Ne5 {[%emt 0:06:30]} Ne4 {[%emt 0:05:58]} 22. Qf3 {[%emt 0:01:47]} Nxc3 {[%emt 0:01:12]} 23. Rxc3 {[%emt 0:01:35]} Qb2 {[%emt 0:01:11]} 24. Qxf7+ {[%emt 0:01:18]} Kh8 {[%emt 0:00:04]} 25. Ng6+ {[%emt 0:00:21]} 1-0

[Event "HUN-chT Youth-Children 2018"]
[Site "Zalakaros"]
[Date "2018.07.26"]
[Round "2"]
[White "Lazsadi, Kerka Lilla"]
[Black "Homolya, Daniel"]
[Result "1-0"]
[ECO "C48"]
[WhiteElo "1399"]
[BlackElo "1057"]
[Annotator "NA"]
[PlyCount "45"]
[EventDate "2018.07.26"]
[EventType "team-tourn"]
[EventCountry "HUN"]
[SourceTitle "playchess.com"]
[Source "ChessBase"]
[SourceQuality "1"]
[TimeControl "5400+30"]

1. e4 {[%emt 0:00:00]} e5 {[%emt 0:00:20]} 2. Nf3 {[%emt 0:00:00]} Nc6 {[%emt 0:00:54]} 3. Bb5 {[%emt 0:00:31]} Bc5 {[%emt 0:00:54]} 4. Nc3 {[%emt 0:00:57]} Nf6 {[%emt 0:00:26]} 5. d3 {[%emt 0:00:57]} d6 {[%emt 0:03:01]} 6. Be3 {[%emt 0:01:29]} Bb6 {[%emt 0:01:19]} 7. O-O {[%emt 0:01:11]} Bg4 {[%emt 0:01:34]} 8. Qe2 {[%emt 0:06:26]} a6 {[%emt 0:02:28]} 9. Bxc6+ {[%emt 0:00:34]} bxc6 {[%emt 0:00:26]} 10. Rad1 {[%emt 0:00:50]} O-O {[%emt 0:01:34]} 11. Bxb6 {[%emt 0:01:12]} cxb6 {[%emt 0:01:14]} 12. Qe3 {[%emt 0:01:36]} Rb8 {[%emt 0:02:34]} 13. d4 {[%emt 0:03:26]} Bxf3 {[%emt 0:01:30]} 14. Qxf3 {[%emt 0:00:32]} Qe7 {[%emt 0:01:04]} 15. d5 {[%emt 0:01:22]} c5 {[%emt 0:01:30]} 16. Qd3 {[%emt 0:02:40]} b5 {[%emt 0:00:37]} 17. b3 {[%emt 0:01:17]} Nd7 {[%emt 0:01:35]} 18. a4 {[%emt 0:01:40]} b4 {[%emt 0:02:10]} 19. Ne2 {[%emt 0:01:02]} Ra8 {[%emt 0:01:29]} 20. Ng3 {[%emt 0:02:10]} Qg5 {[%emt 0:05:02]} 21. Nf5 {[%emt 0:02:06]} Qf6 {[%emt 0:00:35]} 22. f4 {[%emt 0:00:59]} Qg6 {[%emt 0:00:55]} 23. Ne7+ {[%emt 0:00:22]} 1-0

[Event "HUN-chT Youth-Children 2018"]
[Site "Zalakaros"]
[Date "2018.07.26"]
[Round "2"]
[White "Gergely, Daniel"]
[Black "Markus, Molli Amina"]
[Result "1/2-1/2"]
[ECO "D00"]
[WhiteElo "1367"]
[BlackElo "1566"]
[Annotator "NA"]
[PlyCount "103"]
[EventDate "2018.07.26"]
[EventType "team-tourn"]
[EventCountry "HUN"]
[SourceTitle "playchess.com"]
[Source "ChessBase"]
[SourceQuality "1"]
[TimeControl "5400+30"]

1. d4 {[%emt 0:00:00]} d5 {[%emt 0:00:19]} 2. Bf4 {[%emt 0:00:01]} Nf6 {[%emt 0:00:41]} 3. e3 {[%emt 0:00:48]} Bf5 {[%emt 0:01:11]} 4. c4 {[%emt 0:01:18]} e6 {[%emt 0:01:10]} 5. Nc3 {[%emt 0:00:35]} c6 {[%emt 0:02:01]} 6. Qb3 {[%emt 0:01:08]} Qc8 {[%emt 0:02:26]} 7. Nf3 {[%emt 0:03:27]} Nbd7 {[%emt 0:02:24]} 8. Be2 {[%emt 0:01:15]} dxc4 {[%emt 0:02:31]} 9. Bxc4 {[%emt 0:01:21]} Nb6 {[%emt 0:01:35]} 10. Be2 {[%emt 0:02:57]} Nbd5 {[%emt 0:01:45]} 11. Bg3 {[%emt 0:05:32]} Be7 {[%emt 0:11:24]} 12. O-O {[%emt 0:04:21]} O-O {[%emt 0:00:21]} 13. Rac1 {[%emt 0:01:34]} Rd8 {[%emt 0:01:29]} 14. a3 {[%emt 0:08:59]} h6 {[%emt 0:09:05]} 15. h3 {[%emt 0:02:42]} Ne4 {[%emt 0:01:55]} 16. Nxe4 {[%emt 0:01:51]} Bxe4 {[%emt 0:00:22]} 17. Rfd1 {[%emt 0:03:52]} Bd6 {[%emt 0:06:06]} 18. Bxd6 {[%emt 0:00:59]} Rxd6 {[%emt 0:00:16]} 19. Ne5 {[%emt 0:01:48]} f6 {[%emt 0:02:46]} 20. Nc4 {[%emt 0:01:02]} Rd8 {[%emt 0:02:35]} 21. Nd2 {[%emt 0:06:07]} Bg6 {[%emt 0:02:00]} 22. Bg4 {[%emt 0:03:46]} Qd7 {[%emt 0:02:32]} 23. Qc4 Re8 {[%emt 0:02:45]} 24. Nb3 {[%emt 0:06:00]} Qe7 {[%emt 0:03:16]} 25. Nc5 {[%emt 0:01:15]} Bf7 {[%emt 0:01:19]} 26. Qc2 {[%emt 0:01:51]} Rab8 {[%emt 0:04:46]} 27. Re1 {[%emt 0:05:23]} Qc7 {[%emt 0:02:53]} 28. Qd2 {[%emt 0:01:51]} h5 {[%emt 0:02:48]} 29. Bf3 {[%emt 0:01:32]} e5 {[%emt 0:01:32]} 30. Bxd5 {[%emt 0:01:26]} Bxd5 {[%emt 0:00:32]} 31. e4 {[%emt 0:01:41]} Bf7 {[%emt 0:01:01]} 32. Rcd1 {[%emt 0:03:31]} Red8 {[%emt 0:02:44]} 33. Qc3 {[%emt 0:01:36]} exd4 {[%emt 0:01:44]} 34. Rxd4 {[%emt 0:01:30]} Rxd4 {[%emt 0:00:51]} 35. Qxd4 {[%emt 0:01:36]} Rd8 {[%emt 0:00:50]} 36. Qe3 {[%emt 0:01:09]} b6 {[%emt 0:02:10]} 37. Na4 {[%emt 0:01:27]} Qd7 {[%emt 0:01:08]} 38. Nc3 {[%emt 0:00:50]} Qe7 {[%emt 0:01:37]} 39. Rd1 {[%emt 0:02:12]} Rxd1+ {[%emt 0:01:18]} 40. Nxd1 {[%emt 0:00:34]} Kf8 {[%emt 0:01:26]} 41. Nc3 {[%emt 0:00:35]} Qd6 {[%emt 0:02:34]} 42. f4 {[%emt 0:01:56]} Bc4 {[%emt 0:02:42]} 43. Qf3 {[%emt 0:01:03]} Qd4+ {[%emt 0:00:51]} 44. Kh2 {[%emt 0:00:47]} Bf7 {[%emt 0:00:37]} 45. Qe2 {[%emt 0:00:51]} g6 {[%emt 0:01:32]} 46. Qf3 {[%emt 0:01:42]} Qd6 {[%emt 0:00:53]} 47. Kh1 {[%emt 0:00:48]} Kg7 {[%emt 0:00:27]} 48. Qf2 {[%emt 0:00:55]} Bc4 {[%emt 0:01:41]} 49. Qf3 {[%emt 0:03:22]} Bf7 {[%emt 0:00:43]} 50. Qe3 {[%emt 0:00:37]} Be6 {[%emt 0:00:44]} 51. Qf3 {[%emt 0:00:34]} Bf7 {[%emt 0:00:59]} 52. Qf2 {[%emt 0:00:27]} 1/2-1/2

[Event "HUN-chT Youth-Children 2018"]
[Site "Zalakaros"]
[Date "2018.07.26"]
[Round "2"]
[White "Kovacs, Kristof"]
[Black "Kiraly, Lilla Virag"]
[Result "1/2-1/2"]
[ECO "D02"]
[WhiteElo "1351"]
[BlackElo "1488"]
[Annotator "NA"]
[PlyCount "90"]
[EventDate "2018.07.26"]
[EventType "team-tourn"]
[EventCountry "HUN"]
[SourceTitle "playchess.com"]
[Source "ChessBase"]
[SourceQuality "1"]
[TimeControl "5400+30"]

1. d4 {[%emt 0:00:00]} d5 {[%emt 0:00:13]} 2. Nf3 {[%emt 0:00:00]} e6 {[%emt 0:00:14]} 3. Bf4 {[%emt 0:00:21]} f5 {[%emt 0:00:29]} 4. e3 {[%emt 0:00:37]} Nf6 {[%emt 0:00:39]} 5. Nbd2 {[%emt 0:00:47]} Bd6 {[%emt 0:00:45]} 6. Bg3 {[%emt 0:00:27]} Ne4 {[%emt 0:02:48]} 7. Ne5 {[%emt 0:01:26]} Nxg3 {[%emt 0:04:33]} 8. hxg3 {[%emt 0:00:51]} Bxe5 {[%emt 0:00:33]} 9. dxe5 {[%emt 0:00:28]} Qe7 {[%emt 0:04:25]} 10. Bd3 {[%emt 0:03:43]} Nd7 {[%emt 0:02:19]} 11. f4 {[%emt 0:01:05]} Nc5 {[%emt 0:01:33]} 12. Qe2 {[%emt 0:02:10]} Ne4 {[%emt 0:01:07]} 13. Bxe4 {[%emt 0:00:52]} fxe4 {[%emt 0:00:19]} 14. O-O-O {[%emt 0:01:32]} Bd7 {[%emt 0:05:06]} 15. g4 {[%emt 0:03:06]} O-O-O {[%emt 0:03:45]} 16. Nb3 {[%emt 0:02:15]} Qb4 {[%emt 0:07:37]} 17. a3 {[%emt 0:01:45]} Bb5 {[%emt 0:07:04]} 18. Qf2 {[%emt 0:01:43]} Qe7 {[%emt 0:02:29]} 19. Qd2 {[%emt 0:03:19]} Kb8 {[%emt 0:02:22]} 20. g5 {[%emt 0:05:19]} h6 {[%emt 0:04:19]} 21. gxh6 {[%emt 0:00:50]} gxh6 {[%emt 0:00:25]} 22. Rh2 {[%emt 0:01:37]} Rdg8 {[%emt 0:03:08]} 23. Rdh1 {[%emt 0:00:19]} Rg6 {[%emt 0:01:23]} 24. Qa5 {[%emt 0:01:01]} Bd7 {[%emt 0:02:13]} 25. Qc3 {[%emt 0:00:57]} Qg7 {[%emt 0:01:03]} 26. Qd2 {[%emt 0:00:58]} Rg3 {[%emt 0:04:53]} 27. Qf2 {[%emt 0:01:26]} Rg6 {[%emt 0:07:18]} 28. Rg1 {[%emt 0:04:00]} Rg8 {[%emt 0:01:39]} 29. Nc5 {[%emt 0:02:52]} Bc8 {[%emt 0:00:55]} 30. b4 {[%emt 0:01:55]} b6 {[%emt 0:01:47]} 31. Nb3 {[%emt 0:00:22]} Rg3 {[%emt 0:00:55]} 32. Nd4 {[%emt 0:00:44]} Bd7 {[%emt 0:01:17]} 33. b5 {[%emt 0:01:50]} Kb7 {[%emt 0:01:14]} 34. a4 {[%emt 0:01:17]} a6 {[%emt 0:02:18]} 35. f5 {[%emt 0:00:17]} exf5 {[%emt 0:02:25]} 36. e6 {[%emt 0:00:27]} Bxe6 {[%emt 0:11:33]} 37. Nxe6 {[%emt 0:00:21]} Qc3 {[%emt 0:00:23]} 38. bxa6+ {[%emt 0:00:24]} Kxa6 {[%emt 0:00:41]} 39. Rxh6 {[%emt 0:01:02]} Rf3 {[%emt 0:04:11]} 40. Qe1 {[%emt 0:00:46]} Qa3+ {[%emt 0:01:00]} 41. Kd1 {[%emt 0:01:07]} Rxe3 {[%emt 0:01:09]} 42. Qf1+ {[%emt 0:00:48]} Kb7 {[%emt 0:00:41]} 43. Qf4 {[%emt 0:02:41]} Qa1+ {[%emt 0:03:48]} 44. Kd2 {[%emt 0:00:15]} Qc3+ {[%emt 0:00:32]} 45. Kd1 {[%emt 0:00:11]} Rxg2 1/2-1/2

[Event "HUN-chT Youth-Children 2018"]
[Site "Zalakaros"]
[Date "2018.07.26"]
[Round "2"]
[White "Kobol, Kitti"]
[Black "Toth, Csongor"]
[Result "1/2-1/2"]
[ECO "C48"]
[WhiteElo "1224"]
[BlackElo "1326"]
[Annotator "NA"]
[PlyCount "111"]
[EventDate "2018.07.26"]
[EventType "team-tourn"]
[EventCountry "HUN"]
[SourceTitle "playchess.com"]
[Source "ChessBase"]
[SourceQuality "1"]
[TimeControl "5400+30"]

1. e4 {[%emt 0:00:00]} e5 {[%emt 0:00:03]} 2. Nf3 {[%emt 0:00:00]} Nc6 {[%emt 0:00:07]} 3. Nc3 {[%emt 0:00:00]} Nf6 {[%emt 0:00:10]} 4. Bb5 {[%emt 0:00:00]} d6 {[%emt 0:01:42]} 5. d4 {[%emt 0:01:50]} exd4 {[%emt 0:00:26]} 6. Nxd4 {[%emt 0:00:15]} Bd7 {[%emt 0:00:14]} 7. Bg5 {[%emt 0:01:56]} Be7 {[%emt 0:00:50]} 8. Nxc6 {[%emt 0:00:59]} Bxc6 {[%emt 0:00:28]} 9. Bxc6+ {[%emt 0:00:35]} bxc6 {[%emt 0:00:17]} 10. O-O {[%emt 0:00:39]} O-O {[%emt 0:00:18]} 11. Qf3 {[%emt 0:02:15]} Nd7 {[%emt 0:02:15]} 12. Bxe7 {[%emt 0:00:52]} Qxe7 {[%emt 0:00:20]} 13. Rfe1 {[%emt 0:00:52]} Rfe8 {[%emt 0:00:36]} 14. Rad1 {[%emt 0:01:48]} Ne5 {[%emt 0:01:04]} 15. Qg3 {[%emt 0:01:23]} Qf6 {[%emt 0:02:49]} 16. Re2 {[%emt 0:02:14]} Re7 {[%emt 0:01:38]} 17. Rde1 {[%emt 0:01:16]} Rae8 {[%emt 0:00:14]} 18. a4 {[%emt 0:00:34]} Ng6 {[%emt 0:05:26]} 19. h3 {[%emt 0:07:51]} Qf4 {[%emt 0:05:27]} 20. Qxf4 {[%emt 0:02:01]} Nxf4 {[%emt 0:00:08]} 21. Re3 {[%emt 0:00:17]} Ng6 {[%emt 0:00:37]} 22. b4 {[%emt 0:00:38]} a6 {[%emt 0:01:02]} 23. Na2 {[%emt 0:02:15]} d5 {[%emt 0:00:54]} 24. exd5 {[%emt 0:00:42]} Rxe3 {[%emt 0:00:17]} 25. fxe3 {[%emt 0:01:10]} cxd5 {[%emt 0:00:15]} 26. Kf2 {[%emt 0:00:28]} c6 {[%emt 0:01:06]} 27. Rc1 {[%emt 0:03:48]} Ne5 {[%emt 0:00:51]} 28. Ke2 {[%emt 0:01:15]} Nc4 {[%emt 0:00:27]} 29. Kf2 {[%emt 0:02:09]} Rxe3 {[%emt 0:01:07]} 30. c3 {[%emt 0:02:17]} f6 {[%emt 0:00:49]} 31. Rc2 {[%emt 0:03:41]} Re4 {[%emt 0:03:01]} 32. Nc1 {[%emt 0:01:43]} Ne5 {[%emt 0:03:41]} 33. Nb3 {[%emt 0:02:01]} Nd3+ {[%emt 0:02:10]} 34. Kg1 {[%emt 0:01:02]} Kf7 {[%emt 0:03:52]} 35. Na5 {[%emt 0:04:16]} Ne5 {[%emt 0:01:25]} 36. Kf2 {[%emt 0:02:50]} Nd3+ {[%emt 0:01:31]} 37. Kg3 {[%emt 0:00:51]} Ne5 {[%emt 0:00:52]} 38. Nb7 {[%emt 0:01:46]} Nc4 {[%emt 0:03:32]} 39. Kf2 {[%emt 0:03:13]} Re7 {[%emt 0:02:15]} 40. Nd8+ {[%emt 0:00:41]} Kg6 {[%emt 0:01:54]} 41. Nxc6 {[%emt 0:00:51]} Re6 {[%emt 0:03:09]} 42. Nd4 {[%emt 0:02:35]} Re8 {[%emt 0:03:11]} 43. Ne2 {[%emt 0:02:31]} Kf7 {[%emt 0:03:15]} 44. Nf4 {[%emt 0:01:50]} Re5 {[%emt 0:00:29]} 45. Nd3 {[%emt 0:01:24]} Re6 {[%emt 0:01:11]} 46. Nb2 {[%emt 0:00:56]} Nxb2 {[%emt 0:01:53]} 47. Rxb2 {[%emt 0:00:14]} Rc6 {[%emt 0:00:55]} 48. Rb3 {[%emt 0:00:38]} Ke6 {[%emt 0:00:20]} 49. Ke2 {[%emt 0:00:26]} Ke5 {[%emt 0:00:16]} 50. Ke3 {[%emt 0:00:07]} f5 {[%emt 0:00:42]} 51. g3 {[%emt 0:00:33]} g5 {[%emt 0:00:09]} 52. b5 {[%emt 0:01:14]} f4+ {[%emt 0:00:37]} 53. gxf4+ {[%emt 0:00:10]} gxf4+ {[%emt 0:00:07]} 54. Kf3 {[%emt 0:00:07]} axb5 {[%emt 0:00:27]} 55. axb5 {[%emt 0:00:09]} Rb6 {[%emt 0:00:39]} 56. Rb4 {[%emt 0:01:00]} 1/2-1/2

[Event "HUN-chT Youth-Children 2018"]
[Site "Zalakaros"]
[Date "2018.07.26"]
[Round "2"]
[White "Petyko, Martin"]
[Black "Szabo, Akos"]
[Result "1/2-1/2"]
[ECO "D02"]
[WhiteElo "1166"]
[BlackElo "1322"]
[Annotator "NA"]
[PlyCount "66"]
[EventDate "2018.07.26"]
[EventType "team-tourn"]
[EventCountry "HUN"]
[SourceTitle "playchess.com"]
[Source "ChessBase"]
[SourceQuality "1"]
[TimeControl "5400+30"]

1. d4 {[%emt 0:00:00]} d5 {[%emt 0:00:15]} 2. Nf3 {[%emt 0:00:00]} e6 {[%emt 0:00:25]} 3. g3 {[%emt 0:00:05]} f5 {[%emt 0:00:16]} 4. Bg2 {[%emt 0:00:40]} Nf6 {[%emt 0:00:27]} 5. c4 {[%emt 0:01:45]} c6 {[%emt 0:00:16]} 6. Qa4 {[%emt 0:01:02]} Ne4 {[%emt 0:04:27]} 7. Nbd2 {[%emt 0:06:05]} Qf6 {[%emt 0:06:47]} 8. cxd5 {[%emt 0:05:29]} exd5 {[%emt 0:01:01]} 9. O-O {[%emt 0:13:07]} Bd6 {[%emt 0:02:31]} 10. Nxe4 {[%emt 0:08:26]} fxe4 {[%emt 0:01:09]} 11. Ne1 {[%emt 0:02:58]} Bf5 {[%emt 0:03:48]} 12. f3 {[%emt 0:00:30]} Qe6 {[%emt 0:04:29]} 13. g4 {[%emt 0:01:59]} Bg6 {[%emt 0:01:07]} 14. h3 {[%emt 0:02:54]} O-O {[%emt 0:14:55]} 15. f4 {[%emt 0:00:08]} Qe7 {[%emt 0:05:20]} 16. Be3 {[%emt 0:07:45]} Nd7 {[%emt 0:03:27]} 17. Nc2 {[%emt 0:02:49]} Nb6 {[%emt 0:00:29]} 18. Qb3 {[%emt 0:00:55]} Nc4 {[%emt 0:02:11]} 19. f5 {[%emt 0:16:06]} Be8 {[%emt 0:05:10]} 20. Bf4 {[%emt 0:01:06]} Bxf4 {[%emt 0:00:49]} 21. Rxf4 {[%emt 0:00:28]} Qc7 {[%emt 0:00:34]} 22. e3 {[%emt 0:01:34]} h5 {[%emt 0:07:43]} 23. Bxe4 {[%emt 0:01:32]} Nd2 {[%emt 0:02:34]} 24. Bxd5+ {[%emt 0:02:52]} cxd5 {[%emt 0:00:51]} 25. Qxd5+ {[%emt 0:00:30]} Bf7 {[%emt 0:05:24]} 26. Qg2 {[%emt 0:00:49]} Qxc2 {[%emt 0:02:20]} 27. Rf2 {[%emt 0:00:52]} Qxb2 {[%emt 0:00:52]} 28. Rd1 {[%emt 0:02:07]} Qxa2 {[%emt 0:03:07]} 29. Rfxd2 {[%emt 0:00:50]} Qd5 {[%emt 0:03:01]} 30. e4 {[%emt 0:00:29]} Qc6 {[%emt 0:01:59]} 31. d5 {[%emt 0:01:03]} Qd6 {[%emt 0:00:22]} 32. Re1 {[%emt 0:01:12]} Qe5 {[%emt 0:00:36]} 33. Rc1 {[%emt 0:01:43]} Rac8 {[%emt 0:00:37]} 1/2-1/2